bitfinex/quotes_ETHUSD_20260131
["timestamp","ask_amount","ask_price","bid_price","bid_amount"]
[1769877976557,3.96695135,2520.9,2519.5,13.90982874]
[1769877976753,0.99166997,2521.0,2519.5,13.90982874]
[1769877977277,1.28317817,2521.1,2519.7,12.91756838]
[1769877977461,1.28317945,2521.1,2519.9,12.91756838]
[1769877977663,1.28317945,2521.1,2519.8,1.29294788]
[1769877977852,14.7398975,2521.1,2519.5,12.91756838]
[1769877978175,14.7398975,2521.1,2519.4,1.29294788]
[1769877978176,0.1024,2520.8,2519.4,1.29294788]
[1769877978389,0.1024,2520.8,2519.3,0.99233199]
[1769877978787,0.99178799,2520.7,2519.1,3.96966386]
[1769877978949,0.99178799,2520.7,2519.1,16.88723224]
[1769877979153,14.44850604,2520.7,2518.7,16.88775258]
[1769877979352,14.44850604,2520.7,2518.8,1.6899663]
[1769877979353,13.45671805,2520.5,2518.8,1.6899663]
[1769877979551,13.45671805,2520.3,2518.6,0.99259608]
[1769877979892,13.45671805,2520.3,2518.8,0.9925093]
[1769877980064,1.86371623,2520.6,2518.8,0.99252719]
[1769877980065,0.1024,2520.1,2518.8,0.99252719]
[1769877980580,0.1024,2520.1,2518.9,0.99248413]
[1769877980898,0.99206349,2520.0,2519.0,0.99245732]
[1769877981255,0.99206349,2520.0,2518.8,0.99251451]
[1769877981544,0.99206349,2520.0,2518.9,0.99248666]
[1769877983292,3.9682532,2520.1,2518.7,13.91014391]
[1769877986182,17.42497125,2520.1,2518.6,0.99258344]
[1769877986480,13.45671805,2519.8,2518.4,0.0011]
[1769877986870,13.45671805,2519.8,2518.6,0.99261128]
[1769877987178,14.8138209,2519.7,2518.4,0.0011]
[1769877987395,14.44893903,2519.6,2518.4,0.0011]
[1769877987592,0.99222098,2519.6,2518.9,0.0011]
[1769877988859,1.35710285,2519.7,2518.9,0.0011]
[1769877989079,0.99218278,2519.7,2518.9,0.0011]
[1769877989282,0.001,2519.8,2518.9,0.0011]
[1769877989652,0.99316594,2519.8,2518.9,0.0011]
[1769877989882,0.49616224,2519.7,2518.9,0.0011]
[1769877990098,0.99316594,2519.8,2518.9,0.0011]
[1769877990402,0.001,2519.8,2518.9,0.0011]
[1769877990549,0.99314824,2519.8,2518.9,0.0011]
[1769877991563,0.001,2519.8,2518.9,0.0011]
[1769877991764,13.46962848,2519.8,2518.4,0.0011]
[1769877991955,1.34696285,2519.7,2518.4,0.0011]
[1769877992156,0.001,2519.8,2518.4,0.0011]
[1769877992559,0.001,2519.8,2518.4,12.91866838]
[1769877993656,0.001,2519.8,2518.5,0.99265435]
[1769877993859,0.001,2519.8,2518.5,13.91022273]
[1769877995597,0.001,2519.8,2518.5,0.99265435]
[1769877995766,0.9921816,2519.7,2518.6,1.48905045]
[1769877996161,0.9921816,2519.7,2518.6,0.49644212]
[1769877996386,0.9921816,2519.7,2518.6,1.48905328]
[1769877996718,13.45671805,2519.6,2518.4,0.0011]
[1769877997558,13.90649482,2519.7,2518.4,0.0011]
[1769877998798,12.91431322,2519.5,2518.4,0.0011]
[1769877998986,12.91431322,2519.3,2518.4,0.0011]
[1769877999185,12.91431322,2519.3,2518.1,0.0011]
[1769877999384,12.91431322,2518.7,2517.8,0.0011]
[1769877999790,0.99249672,2518.9,2517.8,0.0011]
[1769877999985,2.38317771,2518.9,2517.8,0.0011]
[1769878000220,15.29749093,2518.9,2517.8,0.0011]
[1769878000798,2.38317771,2518.9,2517.8,0.0011]
[1769878001626,0.99249672,2518.9,2517.8,0.0011]
[1769878001926,13.64536168,2518.9,2517.8,0.0011]
[1769878002515,0.99249672,2518.9,2517.8,13.19778002]
[1769878002999,0.99249672,2518.9,2517.8,0.0011]
[1769878003202,0.49624836,2518.8,2517.8,0.0011]
[1769878003890,0.99257553,2518.7,2517.8,0.0011]
[1769878005417,12.65286496,2518.2,2516.1,13.19668002]
[1769878005616,0.1024,2518.1,2516.2,13.19668002]
[1769878005922,0.99269377,2518.4,2516.9,0.99328539]
[1769878006106,13.23241185,2518.3,2517.0,1.41899654]
[1769878006311,13.23241185,2518.3,2516.9,0.99328539]
[1769878006501,13.23241185,2518.3,2516.8,0.99330332]
[1769878006703,0.57954689,2518.3,2516.8,0.99330332]
[1769878006904,0.57954689,2518.3,2516.9,1.81634249]
[1769878007124,0.57954689,2518.3,2516.9,15.01302251]
[1769878008012,0.99277261,2518.2,2517.0,0.99324592]
[1769878008795,4.55063735,2518.3,2517.0,14.18992594]
[1769878008796,0.57954689,2518.3,2517.0,14.18992594]
[1769878009000,1.82468031,2518.5,2517.0,14.18992594]
[1769878009001,1.82468031,2518.5,2517.2,13.19668002]
[1769878009992,1.82468031,2518.5,2517.2,0.99316701]
[1769878010698,1.82468031,2518.5,2517.4,0.0011]
[1769878011798,14.47754527,2518.5,2517.4,0.0011]
[1769878012022,1.84480183,2518.4,2517.4,0.0011]
[1769878012217,0.99273319,2518.3,2517.4,0.0011]
[1769878013621,13.64559815,2518.3,2517.4,0.0011]
[1769878014023,12.65286496,2518.1,2517.4,0.0011]
[1769878014235,0.99285146,2518.0,2517.4,0.0011]
[1769878014620,1.48926962,2518.0,2517.4,0.0011]
[1769878015408,0.49641816,2518.0,2517.4,0.0011]
[1769878015615,1.82467887,2518.5,2517.4,0.0011]
[1769878016012,12.65286496,2518.4,2517.4,0.0011]
[1769878016219,0.99273319,2518.3,2517.4,0.0011]
[1769878017223,13.64559815,2518.3,2517.4,0.0011]
[1769878019339,13.64559815,2518.3,2515.8,0.01191611]
[1769878019340,12.65286496,2517.7,2515.8,0.01191611]
[1769878019509,12.65286496,2517.7,2515.8,13.19668002]
[1769878019510,0.01191611,2517.3,2515.8,13.19668002]
[1769878019836,12.65286496,2517.5,2514.9,13.19668002]
[1769878019837,12.65286496,2516.7,2514.9,13.19668002]
[1769878020008,0.1024,2516.2,2514.9,1.319668]
[1769878020211,12.65286496,2515.7,2513.6,14.19126945]
[1769878020436,3.97487876,2516.2,2513.6,14.19126945]
[1769878020437,1.26647811,2516.6,2514.6,13.19668002]
[1769878020642,3.97314156,2517.0,2515.1,13.19668002]
[1769878020841,0.01192463,2516.8,2515.1,13.19668002]
[1769878021013,12.66478959,2516.8,2515.1,13.19668002]
[1769878021210,13.92958392,2516.7,2514.7,13.19668002]
[1769878021433,12.65286496,2516.5,2514.7,13.19668002]
[1769878021753,0.9344,2516.4,2514.6,13.19668002]
[1769878022311,0.99352223,2516.3,2514.7,0.99415437]
[1769878022510,0.99352223,2516.3,2514.6,13.19668002]
[1769878022511,12.75526496,2516.2,2514.6,0.99418888]
[1769878022739,13.34546608,2516.2,2514.7,0.49711045]
[1769878022945,13.34546608,2516.2,2514.6,0.99418888]
[1769878023142,13.24306608,2516.2,2514.6,0.99418888]
[1769878023443,0.01192605,2516.6,2514.6,0.99418888]
[1769878023444,12.65286496,2517.3,2515.7,0.01192653]
[1769878023645,12.65286496,2517.0,2515.3,0.0011]
[1769878024016,12.76719149,2516.9,2515.3,0.0011]
[1769878024353,12.65286496,2516.4,2515.3,0.0011]
[1769878024641,0.99344327,2516.5,2515.3,0.0011]
[1769878025209,13.65823476,2516.5,2515.3,0.0011]
[1769878025414,1.76320079,2516.4,2515.3,0.0011]
[1769878025609,14.41606575,2516.4,2515.3,0.0011]
[1769878025814,12.65286496,2515.8,2514.0,0.0011]
[1769878026013,12.65286496,2515.3,2514.0,0.0011]
[1769878026214,13.91934411,2515.2,2514.0,0.0011]
[1769878026450,13.64690074,2515.0,2513.2,0.0175189]
[1769878026633,13.64690074,2515.0,2512.1,13.19668002]
[1769878026634,12.65286496,2514.8,2512.1,13.19668002]
[1769878026834,13.91850146,2514.6,2512.2,1.319668]
[1769878027144,13.91850146,2514.4,2513.0,0.99481044]
[1769878027343,0.0119289,2514.9,2512.7,13.23449265]
[1769878027344,13.91850146,2514.9,2512.7,13.23449265]
[1769878027567,13.93043748,2514.6,2512.8,0.99489166]
[1769878027854,0.49940367,2514.9,2513.2,0.99474389]
[1769878028064,0.99401865,2515.1,2513.3,13.74380215]
[1769878028227,0.99401865,2515.1,2513.3,0.49737348]
[1769878028559,3.97493196,2515.8,2513.6,0.01193602]
[1769878028861,15.32168987,2515.7,2513.8,13.23449265]
[1769878029069,15.32168987,2515.7,2513.4,0.99466857]
[1769878029221,13.91850146,2515.1,2513.3,0.99470292]
[1769878029733,0.833,2515.2,2513.6,13.23449265]
[1769878030231,0.833,2515.2,2513.3,14.22919557]
[1769878030456,0.99399626,2515.1,2513.3,14.22919557]
[1769878030757,1.83891328,2515.2,2513.4,15.05529547]
[1769878031083,13.93043748,2515.1,2513.4,1.65360384]
[1769878031224,13.91850146,2514.4,2512.7,0.99492599]
[1769878031419,0.01193602,2513.8,2512.4,0.99502997]
[1769878031807,13.91850146,2514.0,2512.5,2.41797395]
[1769878032066,13.91850146,2514.0,2512.2,0.99511687]
[1769878032220,0.84493602,2514.1,2512.1,3.98058498]
[1769878032221,0.01193673,2513.7,2512.1,3.98058498]
[1769878032419,0.01193673,2513.9,2512.2,0.3980585]
[1769878032420,14.91301176,2513.8,2512.2,0.3980585]
[1769878032619,14.91301176,2513.8,2510.9,13.23449265]
[1769878032620,13.91850146,2513.3,2510.9,13.23449265]
[1769878032850,13.93043819,2513.7,2511.1,13.23449265]
[1769878033071,13.93044223,2513.4,2511.1,13.23449265]
[1769878033226,13.91850146,2513.4,2511.6,0.9953525]
[1769878033431,13.91850146,2513.1,2511.2,1.32464294]
[1769878033727,13.91850146,2513.1,2510.9,0.01194077]
[1769878033927,13.93044223,2513.0,2511.3,0.99548819]
[1769878034139,13.93044223,2513.0,2511.3,3.9819774]
[1769878034342,0.99490608,2512.8,2510.5,13.24643461]
[1769878034518,1.39304422,2512.9,2511.5,13.23449265]
[1769878034718,14.91313046,2513.5,2511.5,13.23449265]
[1769878034924,14.91313046,2513.5,2510.9,14.07943461]
[1769878034925,0.01194196,2513.1,2510.9,14.07943461]
[1769878035116,0.01194267,2512.9,2510.9,14.06749265]
[1769878035322,0.01194267,2513.0,2510.9,14.06749265]
[1769878035585,0.01194267,2513.2,2511.3,13.23449265]
[1769878035788,1.40618135,2513.2,2511.3,13.23449265]
[1769878036083,1.39423868,2513.2,2511.3,13.23449265]
[1769878036270,13.93044413,2513.4,2511.3,13.23449265]
[1769878036568,13.93044413,2513.4,2511.4,14.22995334]
[1769878036569,0.99470815,2513.3,2511.4,14.22995334]
[1769878036738,0.99470815,2513.3,2512.5,0.0011]
[1769878036940,1.49303825,2513.7,2512.5,0.0011]
[1769878037145,3.97836019,2513.6,2512.5,0.0011]
[1769878037346,0.99447074,2513.9,2512.5,0.0011]
[1769878037684,0.01194267,2513.7,2512.5,0.0011]
[1769878037842,1.00641341,2513.9,2512.5,0.0011]
[1769878038043,0.01194267,2513.7,2512.5,0.0011]
[1769878038443,14.91309089,2513.6,2512.5,0.0011]
[1769878039195,13.91850146,2513.4,2511.8,0.99527824]
[1769878039350,13.91850146,2513.4,2511.1,0.01194267]
[1769878039351,0.60016058,2509.5,2509.3,0.01194267]
[1769878039696,4.92871132,2508.9,2507.4,13.23449265]
[1769878039842,0.01194267,2509.7,2507.7,13.24643532]
[1769878040150,1.39185015,2510.1,2507.1,4.00048141]
[1769878040151,0.01195838,2509.6,2507.8,1.32464353]
[1769878040349,0.99629378,2509.3,2507.2,14.23160224]
[1769878040673,0.49934273,2509.2,2507.6,0.01195838]
[1769878040967,1.62068711,2510.1,2508.2,13.23449265]
[1769878041170,1.63264549,2510.1,2508.2,13.23449265]
[1769878041345,1.62068711,2510.1,2508.2,13.23449265]
[1769878041538,0.56044412,2510.0,2508.3,1.32344927]
[1769878041737,1.62068711,2510.1,2508.6,13.23449265]
[1769878041738,0.62471086,2510.1,2508.6,13.23449265]
[1769878041936,0.62471086,2510.1,2508.5,0.01195838]
[1769878041937,0.62471086,2510.1,2508.8,13.23449265]
[1769878042148,0.99587857,2510.4,2508.8,13.23449265]
[1769878042375,0.99587857,2510.4,2508.9,1.3246451]
[1769878042550,3.9828703,2510.8,2508.9,1.3246451]
[1769878042752,0.01195838,2510.3,2508.9,1.3246451]
[1769878043061,0.01195838,2510.2,2508.3,1.32344927]
[1769878043258,0.834,2510.4,2508.4,13.23449265]
[1769878043468,0.01195838,2510.3,2508.4,13.23449265]
[1769878043669,0.01195838,2509.9,2508.3,1.32344927]
[1769878043871,0.01195838,2509.0,2507.3,1.42316022]
[1769878044075,0.01195838,2508.6,2506.6,13.23449265]
[1769878044250,0.01195838,2508.6,2506.2,0.011961]
[1769878044251,0.01195838,2508.8,2507.0,13.23449265]
[1769878044454,0.99665125,2508.4,2507.0,13.23449265]
[1769878044654,0.99665125,2508.4,2507.1,1.42317242]
[1769878044856,0.011961,2507.9,2505.7,13.23449265]
[1769878045162,0.011961,2507.9,2505.1,2.56372849]
[1769878045163,0.01196744,2507.2,2505.1,15.78626014]
[1769878045475,0.01196744,2507.8,2505.4,13.23449265]
[1769878045774,0.01196744,2507.6,2505.6,13.23449265]
[1769878045983,0.01196744,2507.2,2505.7,12.55794192]
[1769878046144,1.00862036,2508.4,2506.7,13.23449265]
[1769878046466,1.00862036,2508.4,2506.8,14.55794192]
[1769878046467,0.01196911,2508.2,2506.8,14.55794192]
[1769878046651,3.986605,2508.5,2506.8,14.23175443]
[1769878046652,0.99661152,2508.5,2506.8,14.23175443]
[1769878047062,0.99661152,2508.5,2506.1,0.01196911]
[1769878047063,14.91511298,2508.5,2506.1,0.01196911]
[1769878047260,0.01196911,2507.4,2505.3,13.23449265]
[1769878047560,0.01196911,2506.9,2505.6,14.23223996]
[1769878047754,0.01196911,2506.7,2505.5,0.99778689]
[1769878047954,0.01196911,2506.1,2504.5,0.05]
[1769878048155,0.455,2506.1,2504.5,0.05]
[1769878048564,14.25447176,2506.8,2504.5,0.05]
[1769878048565,0.99720781,2507.0,2504.7,13.23449265]
[1769878048766,13.93047583,2506.5,2504.5,0.05]
[1769878048967,0.28225416,2506.4,2504.7,14.23261617]
[1769878049173,0.38191366,2506.9,2504.8,15.05820112]
[1769878049344,0.27951366,2506.9,2504.9,0.01197437]
[1769878049543,0.27951366,2506.9,2504.8,15.05820112]
[1769878049544,0.1024,2506.8,2504.8,1.82370847]
[1769878049768,0.01197437,2506.2,2504.8,1.82370847]
[1769878049952,0.27951366,2506.9,2504.6,14.23265302]
[1769878050148,0.27951366,2506.9,2505.3,13.23449265]
[1769878050376,0.27951366,2506.9,2504.7,13.23449265]
[1769878050555,0.27951366,2506.9,2504.9,0.99804383]
[1769878050556,0.99732716,2506.7,2504.9,0.99804383]
[1769878050755,0.01197437,2506.5,2504.9,0.99804383]
[1769878051075,0.27951366,2506.9,2505.1,13.23449265]
[1769878051267,1.27677488,2506.9,2505.2,14.55794192]
[1769878051468,0.27951366,2506.9,2505.2,14.55794192]
[1769878051644,0.99692945,2507.7,2505.8,0.01197437]
[1769878051843,0.01197437,2507.6,2505.3,13.87309579]
[1769878052043,0.01197437,2507.4,2505.3,13.87309579]
[1769878052286,0.01197437,2507.4,2505.5,13.23449265]
[1769878052649,0.9970885,2507.3,2505.6,0.997765]
[1769878052848,0.99706705,2507.4,2505.6,14.23225765]
[1769878053043,0.99706705,2507.4,2505.7,1.32344927]
[1769878053273,0.01197437,2507.3,2505.7,1.32344927]
[1769878053578,0.01197437,2507.1,2505.7,1.32344927]
[1769878053881,0.01197437,2507.3,2505.5,0.99780265]
[1769878054077,0.01197437,2506.8,2504.3,13.23449265]
[1769878054322,0.01197437,2506.0,2503.7,0.99851666]
[1769878054616,0.99724759,2506.9,2504.6,14.23265602]
[1769878054890,0.99692945,2507.7,2505.4,13.23449265]
[1769878055043,0.01197437,2507.6,2505.4,13.23449265]
[1769878055249,0.5008596,2507.6,2505.7,13.24646702]
[1769878055448,0.84797437,2508.3,2506.2,13.23449265]
[1769878055449,0.99673072,2508.2,2506.2,13.23449265]
[1769878055676,0.99649234,2508.8,2506.7,13.23449265]
[1769878055979,0.01197437,2507.8,2505.5,14.55794192]
[1769878056176,0.01197437,2507.8,2505.8,0.01197437]
[1769878056366,0.01197437,2507.8,2505.8,13.23449265]
[1769878056674,3.98771782,2507.9,2505.9,14.55794192]
[1769878056858,3.98771782,2507.9,2506.1,13.23449265]
[1769878057058,3.98739981,2508.2,2506.3,12.67616121]
[1769878057059,0.99673072,2508.2,2506.3,12.67616121]
[1769878057363,0.49841305,2508.1,2506.4,1.26881356]
[1769878058162,0.01197437,2508.0,2505.8,12.67616121]
[1769878058360,0.01197437,2507.8,2505.8,12.67616121]
[1769878058573,0.01197437,2507.6,2505.2,12.67616121]
[1769878058866,0.01197437,2507.4,2505.4,12.67616121]
[1769878059087,0.51283397,2507.6,2505.8,12.67616121]
[1769878059304,0.5008596,2507.6,2505.4,0.01197437]
[1769878059564,0.5008596,2507.6,2504.6,12.67616121]
[1769878059565,0.01197437,2506.8,2504.6,12.67616121]
[1769878059795,0.01197437,2506.6,2504.6,12.67616121]
[1769878060223,13.11414501,2506.5,2504.5,0.05]
[1769878060506,0.01197437,2506.0,2504.5,0.05]
[1769878060665,0.99764555,2505.9,2504.5,0.05]
[1769878060865,0.51199458,2505.8,2504.5,0.05]
[1769878061091,0.99764555,2505.9,2504.5,0.05]
[1769878061399,0.99732716,2506.7,2504.7,13.84362514]
[1769878061599,0.01197533,2506.4,2504.7,0.0011]
[1769878062097,0.01197533,2506.2,2504.7,0.0011]
[1769878062303,0.51439606,2506.1,2504.7,0.0011]
[1769878062469,0.01197533,2506.3,2504.7,0.0011]
[1769878062667,0.99752613,2506.2,2504.7,0.0011]
[1769878063104,0.01197533,2505.7,2501.1,30.0]
[1769878063271,6.071073,2500.9,2500.7,0.2400203]
[1769878063465,0.01197533,2500.8,2499.7,2.74586777]
[1769878063773,0.01197533,2500.8,2495.0,1.81732703]
[1769878063774,2.50464875,2496.3,2495.0,1.81732703]
[1769878064098,4.42531576,2500.0,2492.1,13.99919743]
[1769878064099,0.422757,2494.2,2492.1,13.99919743]
[1769878064401,0.422757,2494.2,2491.0,0.00985063]
[1769878064402,2.23299443,2493.6,2492.5,16.8828623]
[1769878064693,2.23299443,2493.6,2491.2,0.836]
[1769878064694,0.01202091,2493.3,2491.9,1.00321873]
[1769878064863,0.01202091,2492.2,2491.1,2.89460878]
[1769878065063,0.01202091,2492.7,2491.3,13.96912274]
[1769878065297,0.68744531,2493.4,2491.3,4.72170198]
[1769878065535,1.00196384,2495.1,2492.3,13.85456535]
[1769878065799,0.01204021,2494.5,2491.8,0.01204021]
[1769878066007,0.01204021,2494.5,2491.3,13.85456535]
[1769878066008,0.00928076,2494.9,2492.0,13.84252514]
[1769878066210,0.01204021,2495.1,2492.7,13.84252514]
[1769878066369,1.00172296,2495.7,2493.5,13.84252514]
[1769878066573,0.01204021,2495.4,2492.8,2.08448623]
[1769878066814,0.01204021,2493.9,2492.0,13.84252514]
[1769878066998,0.53104598,2495.3,2493.1,13.84252514]
[1769878067300,0.01204021,2495.6,2491.2,2.01625746]
[1769878067487,0.01204021,2493.3,2491.9,13.84252514]
[1769878067665,0.01204021,2493.3,2490.9,0.01204021]
[1769878067666,0.01204021,2492.7,2490.2,13.84252514]
[1769878067870,0.01204021,2491.4,2490.9,7.00233712]
[1769878068075,0.01204021,2494.1,2492.4,13.84252514]
[1769878068299,0.01204021,2495.2,2491.7,0.01204021]
[1769878068300,0.01204021,2495.5,2493.7,7.00233712]
[1769878068470,0.01204021,2495.1,2493.7,7.00233712]
[1769878068668,0.01204021,2495.1,2492.6,13.84252514]
[1769878068669,0.01204021,2494.8,2492.6,13.84252514]
[1769878068870,0.01204021,2494.3,2492.5,8.15594053]
[1769878069079,0.01204021,2492.6,2491.2,2.01625746]
[1769878069279,0.01204021,2491.4,2491.3,0.20162575]
[1769878069479,0.01204021,2490.7,2490.5,7.00233712]
[1769878069704,0.01204021,2491.0,2490.6,0.70023371]
[1769878069887,0.01204021,2491.2,2488.6,7.00233712]
[1769878069888,0.01204021,2490.1,2488.6,7.00233712]
[1769878070068,0.01205037,2489.5,2488.9,7.00233712]
[1769878070269,0.01205037,2488.1,2487.6,4.89424498]
[1769878070471,0.79507337,2488.7,2486.0,0.00403]
[1769878070672,0.5625209,2489.1,2487.4,7.00233712]
[1769878070673,0.01205037,2488.8,2487.4,7.00233712]
[1769878070899,0.01205037,2489.0,2487.5,0.70023371]
[1769878070900,0.01205037,2487.6,2487.5,0.70023371]
[1769878071103,12.75180971,2488.1,2486.0,0.00403]
[1769878071402,13.7440595,2489.3,2485.3,0.01206369]
[1769878071700,13.7440595,2489.3,2484.8,1.0327135]
[1769878071701,12.73974602,2487.5,2484.8,1.0327135]
[1769878071907,12.73974602,2486.3,2482.9,0.0175189]
[1769878072075,2.18088436,2484.8,2481.6,0.01609885]
[1769878072273,12.73974602,2485.1,2482.2,4.02860798]
[1769878072574,0.78082033,2485.0,2481.1,14.85014272]
[1769878072881,12.73974602,2489.7,2488.7,1.2500943]
[1769878073089,3.49880679,2490.1,2488.7,1.2500943]
[1769878073090,1.00401606,2490.0,2488.7,1.14539003]
[1769878073403,0.01609885,2489.5,2487.9,0.20940854]
[1769878073697,0.01609885,2489.4,2486.8,7.00233712]
[1769878073904,1.00345388,2491.5,2490.2,0.0011]
[1769878074112,1.00345388,2491.5,2487.9,0.01609885]
[1769878074113,0.01609885,2491.8,2488.0,13.84252514]
[1769878074274,0.02007427,2493.2,2490.0,0.0011]
[1769878074477,0.20782251,2493.1,2491.0,0.02007427]
[1769878074712,1.00188354,2495.4,2492.3,13.84252514]
[1769878074870,1.06780293,2496.8,2493.2,7.00233712]
[1769878074871,0.2076649,2495.3,2493.2,7.00233712]
[1769878075069,0.2076649,2495.3,2494.1,7.00233712]
[1769878075297,0.0175189,2495.5,2494.1,7.00233712]
[1769878075790,1.00096092,2497.6,2495.0,0.02007427]
[1769878075990,1.00096092,2497.6,2494.2,13.84252514]
[1769878075991,0.02007427,2497.1,2494.2,13.84252514]
[1769878076190,0.02007427,2496.5,2493.4,7.02241139]
[1769878076393,5.50021127,2496.4,2493.6,0.02007427]
[1769878076717,5.50021127,2496.4,2493.2,0.02007427]
[1769878076718,0.02007427,2495.5,2492.0,13.86259941]
[1769878076878,3.92849027,2495.4,2491.6,0.02007427]
[1769878077202,0.02007427,2493.7,2491.6,8.00567722]
[1769878077417,0.02007427,2494.1,2491.6,8.00567722]
[1769878077418,0.02007427,2495.1,2491.8,0.02007427]
[1769878077720,0.40676333,2495.2,2492.5,7.00233712]
[1769878077873,0.02007427,2495.0,2492.2,0.5181168]
[1769878078221,0.02007427,2493.5,2491.2,7.00233712]
[1769878078510,0.02007427,2492.1,2490.2,7.00233712]
[1769878078809,0.02007427,2492.0,2490.0,0.0011]
[1769878078977,0.02007427,2491.3,2490.0,0.0011]
[1769878079172,0.02007427,2491.1,2490.0,0.0011]
[1769878079377,1.02313968,2492.4,2490.2,7.00233712]
[1769878079595,1.02313968,2492.4,2490.0,0.0011]
[1769878079596,0.02007427,2491.6,2490.0,0.0011]
[1769878079800,0.02007427,2491.2,2490.0,0.0011]
[1769878080002,0.02007427,2490.1,2489.0,0.0011]
[1769878080201,0.57938215,2490.3,2489.0,0.0011]
[1769878080384,0.02007427,2490.1,2489.0,0.0011]
[1769878080592,0.02007427,2489.1,2486.1,7.00233712]
[1769878080790,0.02007427,2489.1,2485.3,0.16087289]
[1769878080791,0.02007427,2487.4,2485.3,7.16321001]
[1769878081012,0.02007427,2486.2,2483.2,13.84252514]
[1769878081313,0.02007427,2487.8,2484.7,0.02007427]
[1769878081513,0.02007427,2487.8,2484.5,1.00620203]
[1769878081514,0.02007427,2487.3,2484.5,1.00620203]
[1769878081848,0.02007427,2486.7,2484.3,7.00233712]
[1769878082114,0.02007427,2487.1,2484.3,7.00233712]
[1769878082115,0.02007427,2489.3,2486.1,0.02007427]
[1769878082317,0.50212903,2489.3,2487.1,0.02007427]
[1769878082516,1.00381449,2490.5,2487.3,0.02007427]
[1769878082678,1.02316378,2492.3,2488.3,0.02007427]
[1769878082880,0.02007427,2490.7,2487.8,0.43367657]
[1769878083095,0.02007427,2491.1,2487.4,0.02007427]
[1769878083096,0.02007427,2491.7,2488.9,0.02007427]
[1769878083323,0.02007427,2492.2,2489.4,13.86259941]
[1769878083614,4.02997469,2493.9,2491.8,0.02007427]
[1769878083922,1.00168282,2495.8,2493.6,0.02007427]
[1769878084122,0.20917631,2496.5,2494.1,0.02007427]
[1769878084413,0.20917631,2496.5,2495.0,0.02007427]
[1769878084737,0.20917631,2496.5,2494.9,0.13557427]
[1769878084738,0.02007427,2498.2,2494.9,0.1155]
[1769878085023,4.40716534,2498.3,2496.0,0.02007427]
[1769878085182,4.40716534,2498.3,2495.7,1.00171642]
[1769878085183,1.40495892,2498.3,2496.5,0.02007427]
[1769878085381,0.54078458,2498.2,2495.7,0.02007427]
[1769878085582,0.54078458,2498.2,2496.9,0.02007427]
[1769878085809,1.00012001,2499.7,2496.6,7.02241139]
[1769878086012,0.99984002,2500.4,2498.0,0.02007427]
[1769878086216,3.99961636,2500.3,2498.2,0.02007427]
[1769878086383,3.99961636,2500.3,2498.1,0.02007427]
[1769878086586,1.00016002,2499.6,2496.8,1.00124895]
[1769878086835,0.99980003,2500.5,2497.8,0.02007427]
[1769878086991,0.99980003,2500.5,2498.1,0.02007427]
[1769878087194,0.02007427,2500.1,2497.2,0.02007427]
[1769878087523,0.02007427,2500.1,2496.6,0.70625599]
[1769878087524,0.02007427,2499.2,2496.6,0.70625599]
[1769878087725,0.02007427,2499.0,2496.9,0.02007427]
[1769878087907,0.02007427,2499.2,2496.6,0.02007427]
[1769878088130,0.02007427,2499.2,2496.8,0.02007427]
[1769878088330,0.02007427,2500.0,2497.4,0.02007427]
[1769878088511,0.02007427,2500.3,2497.8,0.02007427]
[1769878088710,0.02007427,2499.5,2496.9,0.02007427]
[1769878088918,1.00008,2499.8,2497.7,0.02007427]
[1769878089124,0.99980003,2500.5,2498.2,0.02007427]
[1769878089417,4.01671905,2500.6,2499.2,0.02007427]
[1769878089418,0.0175189,2500.6,2499.2,0.02007427]
[1769878089717,0.02007427,2502.1,2499.2,0.02007427]
[1769878089718,0.99888125,2502.8,2500.5,0.02007427]
[1769878089916,0.99888125,2502.8,2500.2,0.02007427]
[1769878089917,1.42050243,2502.8,2500.2,0.02007427]
[1769878090143,0.02007427,2502.3,2498.5,13.27829895]
[1769878090330,0.02007427,2502.6,2499.7,0.02007427]
[1769878090637,0.54359715,2502.7,2499.8,0.02007427]
[1769878090638,0.02007427,2502.1,2499.8,0.02007427]
[1769878090826,0.02007427,2502.1,2499.6,0.02007427]
[1769878091028,0.02007427,2502.3,2498.2,4.00281459]
[1769878091029,0.02007427,2501.0,2498.6,0.02007427]
[1769878091240,0.02007427,2501.9,2499.5,0.02007427]
[1769878091543,0.02007427,2501.6,2499.1,0.02007427]
[1769878091836,0.02007427,2501.7,2499.5,0.02007427]
[1769878092039,0.02007427,2501.7,2499.1,0.02007427]
[1769878092241,0.02007427,2501.7,2498.4,1.00063193]
[1769878092242,0.02007427,2500.9,2498.4,1.00063193]
[1769878092448,0.02007427,2501.1,2498.9,0.02007427]
[1769878092745,0.99928051,2501.8,2499.5,0.02007427]
[1769878092913,0.50164184,2501.7,2499.6,0.02007427]
[1769878093112,0.02007427,2501.5,2499.2,1.00030584]
[1769878093341,0.02007427,2501.1,2499.2,1.00031036]
[1769878093661,0.02007427,2501.1,2498.8,0.02007427]
[1769878093662,0.02007427,2500.9,2498.8,0.02007427]
[1769878093938,0.52171611,2501.7,2498.4,0.25364457]
[1769878093939,0.02007427,2501.5,2499.5,1.00019712]
[1769878094238,0.52171611,2501.7,2499.5,1.50230428]
[1769878094437,0.50164184,2501.7,2499.8,0.02007427]
[1769878094764,0.99940035,2501.5,2499.5,0.50210716]
[1769878095044,0.02007427,2501.1,2498.7,0.02007427]
[1769878095247,1.01947462,2501.5,2499.5,1.00019398]
[1769878095423,1.01947462,2501.5,2499.1,0.02007427]
[1769878095424,0.52178188,2501.4,2499.3,0.02007427]
[1769878095639,0.50170761,2501.4,2499.8,0.02007427]
[1769878095840,0.02007427,2501.7,2498.9,1.02050834]
[1769878096069,0.02007427,2500.6,2497.7,4.00364996]
[1769878096266,0.02007427,2500.5,2498.6,0.02007427]
[1769878096571,0.02007427,2501.0,2498.9,1.00043635]
[1769878096732,0.02007427,2500.8,2498.5,1.00060036]
[1769878096932,0.02007427,2500.8,2497.7,0.02007427]
[1769878096933,0.02007427,2500.5,2497.7,0.02007427]
[1769878097138,0.02007427,2500.2,2498.1,0.02007427]
[1769878097370,0.02007427,2500.1,2496.8,4.02506412]
[1769878097580,0.02007427,2500.0,2497.8,1.02093822]
[1769878097881,0.02007427,2499.8,2497.7,1.00089078]
[1769878098167,0.02007427,2499.8,2497.8,0.02007427]
[1769878098168,0.39350558,2499.8,2497.8,0.02007427]
[1769878098341,0.02007427,2500.2,2497.4,0.02007427]
[1769878098342,0.02007427,2499.6,2497.4,0.02007427]
[1769878098657,0.60038443,2500.8,2497.4,0.02007427]
[1769878098658,0.04398346,2500.8,2498.6,0.02007427]
[1769878098830,0.02107427,2501.2,2498.8,0.02007427]
[1769878099030,0.99956019,2501.1,2499.3,0.02007427]
[1769878099249,1.00054165,2501.2,2498.6,0.02007427]
[1769878099449,0.02007427,2501.1,2498.3,4.02270727]
[1769878099651,1.40043085,2501.2,2499.3,0.02007427]
[1769878099839,1.00053704,2501.2,2498.9,0.02007427]
[1769878100045,1.02061131,2501.2,2499.0,0.02007427]